bitfinex/quotes_BTCUSD_20251011
["timestamp","ask_amount","ask_price","bid_price","bid_amount"]
[1760141103581,0.34883938,113130.0,113080.0,0.08750055]
[1760141103756,0.34,113130.0,113080.0,0.08750055]
[1760141104081,0.28890198,113160.0,113100.0,0.08750055]
[1760141104282,0.07870916,113170.0,113110.0,0.08750055]
[1760141104431,0.18910199,113180.0,113110.0,0.13419055]
[1760141104629,0.0002,113180.0,113120.0,0.08750055]
[1760141105071,0.0002,113180.0,113110.0,0.04669]
[1760141105072,0.0002,113180.0,113130.0,0.08750055]
[1760141105272,0.0002,113180.0,113130.0,0.08796974]
[1760141105473,0.0002,113180.0,113150.0,0.08750055]
[1760141106236,0.0012,113180.0,113150.0,0.08750055]
[1760141106751,0.0002,113180.0,113150.0,0.08750055]
[1760141106988,0.0002,113180.0,113150.0,0.08850055]
[1760141107197,0.0002,113180.0,113170.0,0.08750055]
[1760141108399,0.0002,113180.0,113170.0,0.08796974]
[1760141108795,0.0002,113180.0,113170.0,0.08896974]
[1760141110434,0.0002,113180.0,113170.0,0.31413502]
[1760141110952,0.0002,113180.0,113170.0,0.13740974]
[1760141111166,0.0002,113180.0,113170.0,0.31513502]
[1760141111379,0.0002,113180.0,113170.0,0.36395502]
[1760141111515,0.0002,113180.0,113170.0,0.36295502]
[1760141111718,8e-05,113200.0,113190.0,0.34]
[1760141111960,8e-05,113200.0,113190.0,0.42750055]
[1760141112520,8e-05,113200.0,113190.0,0.08750055]
[1760141112907,8e-05,113200.0,113190.0,0.08850055]
[1760141113754,0.00028,113200.0,113190.0,0.08850055]
[1760141114162,0.00028,113200.0,113190.0,0.08830055]
[1760141114932,8e-05,113200.0,113190.0,0.08830055]
[1760141115333,8e-05,113200.0,113190.0,0.57577432]
[1760141115558,8e-05,113200.0,113190.0,0.7516946]
[1760141115732,8e-05,113200.0,113190.0,0.42759662]
[1760141115947,8e-05,113200.0,113190.0,9.607e-05]
[1760141116358,8e-05,113200.0,113110.0,0.33235927]
[1760141116577,0.00058759,113200.0,113150.0,0.08750055]
[1760141117225,0.5255302,113190.0,113090.0,0.27024056]
[1760141117512,0.34,113170.0,113110.0,0.08750055]
[1760141117936,0.54172548,113170.0,113060.0,0.10356763]
[1760141118144,0.0088386,113140.0,113080.0,0.08750055]
[1760141118369,0.34,113140.0,113080.0,0.08750055]
[1760141118789,0.18554752,113180.0,113090.0,0.08750055]
[1760141118790,0.02499999,113180.0,113090.0,0.08750055]
[1760141118992,0.34,113170.0,113100.0,0.08750055]
[1760141119414,0.5172333,113170.0,113100.0,0.08750055]
[1760141119638,0.52606956,113170.0,113100.0,0.08750055]
[1760141120111,0.34883782,113150.0,113060.0,0.05512763]
[1760141120321,0.0088386,113140.0,113070.0,0.08750055]
[1760141120524,0.18561175,113140.0,113070.0,0.08750055]
[1760141120922,0.36499999,113150.0,113070.0,0.106309]
[1760141121128,0.18561361,113140.0,113070.0,0.106309]
[1760141121295,0.18561361,113140.0,113070.0,0.08750055]
[1760141121748,0.34,113120.0,113070.0,0.08750055]
[1760141123133,0.00050696,113120.0,113070.0,0.08750055]
[1760141123253,0.00050696,113120.0,113070.0,0.4463408]
[1760141123953,0.00050696,113120.0,113070.0,0.08750055]
[1760141124266,0.00050696,113120.0,113070.0,0.10635835]
[1760141124469,0.00050696,113120.0,113070.0,0.08750055]
[1760141124676,0.0088386,113140.0,113090.0,0.09538455]
[1760141124880,0.1856128,113140.0,113090.0,0.09589151]
[1760141125264,0.18559468,113150.0,113090.0,0.09589151]
[1760141125468,0.18561123,113140.0,113090.0,0.00050696]
[1760141125910,0.0088386,113140.0,113090.0,0.09589151]
[1760141126123,0.18661162,113140.0,113090.0,0.09589151]
[1760141126304,0.0098386,113140.0,113090.0,0.09589151]
[1760141126515,0.18661116,113140.0,113090.0,0.00050696]
[1760141126715,0.18661116,113140.0,113090.0,0.09589151]
[1760141126917,0.34,113130.0,113090.0,0.00050696]
[1760141127121,0.34,113130.0,113090.0,0.09589151]
[1760141127804,0.52559483,113150.0,113090.0,0.09589151]
[1760141128040,0.34,113150.0,113090.0,0.09589151]
[1760141128246,0.52559489,113150.0,113090.0,0.00050696]
[1760141128470,0.34883782,113150.0,113090.0,0.09589151]
[1760141128671,0.52559599,113150.0,113090.0,0.00050696]
[1760141128871,0.52559599,113150.0,113090.0,0.09589151]
[1760141129300,0.34,113130.0,113090.0,0.09589151]
[1760141129816,0.34,113130.0,113090.0,0.1148339]
[1760141130381,0.52659812,113150.0,113090.0,0.1148339]
[1760141131037,0.52659812,113150.0,113090.0,0.09589151]
[1760141131339,0.341,113150.0,113090.0,0.20236627]
[1760141131541,0.34,113150.0,113090.0,0.59946627]
[1760141131754,0.52559667,113150.0,113090.0,0.51196572]
[1760141132071,0.34,113150.0,113090.0,0.51196572]
[1760141132267,0.34,113150.0,113090.0,0.58049206]
[1760141132528,0.001,113150.0,113100.0,0.09299151]
[1760141132734,0.34,113140.0,113090.0,0.49299151]
[1760141133166,0.17680783,113120.0,113090.0,0.4]
[1760141133291,0.51683465,113100.0,113090.0,0.39365581]
[1760141133513,0.56209189,113100.0,113090.0,0.39365581]
[1760141133723,0.56910037,113100.0,113090.0,0.39365581]
[1760141133923,0.54731951,113100.0,113090.0,0.39365581]
[1760141134134,0.51683465,113100.0,113090.0,0.39365581]
[1760141134541,0.00884016,113120.0,113090.0,0.39365581]
[1760141134789,0.17681922,113110.0,113090.0,0.39365581]
[1760141134956,0.51613465,113100.0,113090.0,0.39365581]
[1760141135368,0.51713465,113100.0,113090.0,0.39365581]
[1760141135967,0.51683465,113100.0,113090.0,0.39365581]
[1760141136428,0.52484313,113100.0,113090.0,0.39365581]
[1760141136664,0.17689722,113060.0,113040.0,0.001]
[1760141136847,0.51691299,113050.0,113030.0,0.001]
[1760141137046,0.51691312,113050.0,113030.0,0.001]
[1760141137332,0.33921018,113030.0,113020.0,0.001]
[1760141137703,0.33907011,113030.0,113020.0,0.001]
[1760141137882,0.51601428,113030.0,113020.0,0.001]
[1760141138090,0.33907011,113030.0,113020.0,0.001]
[1760141138252,0.51601428,113030.0,113020.0,0.001]
[1760141138655,0.18398396,113010.0,113000.0,0.00353]
[1760141138855,0.58398396,113010.0,113000.0,1e-08]
[1760141139058,0.68398395,113010.0,113000.0,1e-08]
[1760141139265,0.75231044,113010.0,113000.0,1e-08]
[1760141139670,1.06911567,113010.0,113000.0,1e-08]
[1760141139887,1.02505431,113010.0,113000.0,1e-08]
[1760141140064,0.52449029,113010.0,113000.0,1e-08]
[1760141140265,0.51748181,113010.0,113000.0,1e-08]
[1760141140543,0.52449029,113010.0,113000.0,1e-08]
[1760141140735,0.17748181,113010.0,113000.0,1e-08]
[1760141141015,0.00050633,113010.0,113000.0,1e-08]
[1760141141674,0.00250633,113010.0,113000.0,1e-08]
[1760141142060,0.00050633,113010.0,113000.0,1e-08]
[1760141142216,0.00050633,113010.0,113000.0,0.09299152]
[1760141142416,0.00150633,113010.0,113000.0,0.09299152]
[1760141142849,0.00050633,113010.0,113000.0,0.09299152]
[1760141143054,0.00050633,113010.0,113000.0,0.11799151]
[1760141143234,0.00050633,113010.0,113000.0,0.09399152]
[1760141143565,0.00050633,113010.0,113000.0,0.11899151]
[1760141143766,0.00050633,113010.0,113000.0,0.00100001]
[1760141143991,0.00050633,113010.0,113000.0,0.09399152]
[1760141144202,0.00050633,113010.0,113000.0,0.00100001]
[1760141144407,0.00050633,113010.0,113000.0,0.11799151]
[1760141144805,0.00050633,113010.0,113000.0,0.11899151]
[1760141145070,0.00050633,113010.0,113000.0,0.09399152]
[1760141145356,0.00050633,113010.0,113000.0,1e-08]
[1760141145560,0.00050633,113010.0,113000.0,0.09399152]
[1760141145902,0.00050633,113010.0,113000.0,0.11799151]
[1760141146324,0.00050633,113010.0,113000.0,0.54549206]
[1760141147316,0.17686783,113080.0,113030.0,0.09299151]
[1760141147603,0.18387082,113110.0,113030.0,0.09299151]
[1760141147604,0.00884095,113110.0,113040.0,0.08750055]
[1760141147756,0.17690626,113120.0,113050.0,0.1179915]
[1760141147968,0.18574642,113120.0,113060.0,0.09299151]
[1760141148527,0.001,113080.0,113060.0,0.09299151]
[1760141148728,0.001,113080.0,113030.0,0.09314319]
[1760141148990,0.34,113070.0,113030.0,0.00015168]
[1760141149159,0.34,113070.0,113030.0,0.09314319]
[1760141149160,0.34884407,113070.0,113030.0,0.09314319]
[1760141149371,0.34,113070.0,113030.0,0.09314319]
[1760141149570,0.34,113070.0,113030.0,0.08765223]
[1760141149740,0.34,113070.0,113030.0,0.00015168]
[1760141149741,0.18574333,113060.0,113030.0,0.00015168]
[1760141149955,0.34,113070.0,113030.0,0.00015168]
[1760141149956,0.52572732,113070.0,113030.0,0.00015168]
[1760141150157,0.18574526,113060.0,113030.0,0.00015168]
[1760141150394,0.52574526,113060.0,113030.0,0.00015168]
[1760141150598,0.51692852,113040.0,113030.0,0.00015168]
[1760141151250,0.51697548,113010.0,113000.0,1e-08]
[1760141151469,0.51697548,113010.0,113000.0,0.00014089]
[1760141152105,0.52398396,113010.0,113000.0,0.00014089]
[1760141152311,0.51697548,113010.0,113000.0,0.00014089]
[1760141152553,0.52498396,113010.0,113000.0,0.00014089]
[1760141153494,0.52398396,113010.0,113000.0,0.00014089]
[1760141153906,0.54817873,113010.0,113000.0,0.00014089]
[1760141154408,0.51697548,113010.0,113000.0,0.00014089]
[1760141154610,0.52398396,113010.0,113000.0,0.00014089]
[1760141154815,0.52598396,113010.0,113000.0,0.00014089]
[1760141155153,0.52398396,113010.0,113000.0,0.00014089]
[1760141155546,0.52498396,113010.0,113000.0,0.00014089]
[1760141156327,0.34,112970.0,112940.0,0.09205892]
[1760141156519,0.34,112970.0,112940.0,0.09256525]
[1760141156779,0.34,112970.0,112940.0,0.00050633]
[1760141156971,0.34,112970.0,112940.0,0.09256525]
[1760141157354,0.34,112970.0,112940.0,0.00050633]
[1760141157555,0.00885034,112990.0,112940.0,0.02550632]
[1760141157759,0.18585723,112990.0,112940.0,0.11756524]
[1760141157940,0.51700732,112990.0,112960.0,0.09205892]
[1760141158141,0.17703711,113020.0,112960.0,0.09205892]
[1760141158346,0.18584103,113000.0,112960.0,0.09205892]
[1760141158779,0.18584103,113000.0,112950.0,0.11705891]
[1760141158780,0.34,112990.0,112950.0,0.11705891]
[1760141159096,0.34,112990.0,112950.0,0.02499999]
[1760141159498,0.34,112990.0,112950.0,0.11705891]
[1760141159851,0.51700773,112990.0,112950.0,0.11705891]
[1760141160070,0.00885112,112980.0,112940.0,0.00050633]
[1760141160266,0.18587428,112980.0,112940.0,0.00050633]
[1760141160518,0.52584132,113000.0,112960.0,0.09205892]
[1760141160721,0.52584132,113000.0,112950.0,0.09205892]
[1760141160927,0.34,113000.0,112960.0,0.09205892]
[1760141161440,0.525841,113000.0,112950.0,0.11705891]
[1760141161627,0.001,113000.0,112960.0,0.11705891]
[1760141161928,0.34984955,113000.0,112960.0,0.02499999]
[1760141162254,0.5268429,113000.0,112950.0,0.02499999]
[1760141162465,0.341,113000.0,112950.0,0.02499999]
[1760141162928,0.34,113000.0,112980.0,0.09205892]
[1760141163153,0.34884799,113020.0,112980.0,0.09205892]
[1760141163311,0.34,113020.0,112980.0,0.09205892]
[1760141163678,0.18579286,113030.0,112980.0,0.11705891]
[1760141164105,0.18579286,113030.0,112980.0,0.11756524]
[1760141164306,0.07829902,113040.0,112990.0,0.17955947]
[1760141164508,0.18791765,113060.0,113010.0,0.11705891]
[1760141164706,0.001,113030.0,113020.0,0.09205892]
[1760141164903,0.001,113030.0,113000.0,0.02499999]
[1760141164904,0.001,113030.0,112990.0,0.02499999]
[1760141165163,0.001,113030.0,113020.0,0.09205892]
[1760141165367,0.001,113030.0,113010.0,0.11705891]
[1760141165645,0.001,113030.0,113020.0,0.09205892]
[1760141165843,0.18579137,113030.0,113020.0,0.00015336]
[1760141166058,0.52579137,113030.0,113020.0,0.00015336]
[1760141166551,0.51684029,113030.0,113020.0,0.00015336]
[1760141166754,0.60398651,113030.0,113020.0,0.00015336]
[1760141167191,0.61192758,113030.0,113020.0,0.00015336]
[1760141167431,0.63530612,113030.0,113020.0,5.168e-05]
[1760141167630,0.64324719,113030.0,113020.0,5.168e-05]
[1760141167832,0.64424719,113030.0,113020.0,5.168e-05]
[1760141168034,0.71505052,113030.0,113020.0,5.168e-05]
[1760141168240,0.53462856,113030.0,113020.0,5.168e-05]
[1760141168475,0.6054357,113030.0,113020.0,5.168e-05]
[1760141169149,0.6044357,113030.0,113020.0,5.168e-05]
[1760141169359,0.7054357,113030.0,113020.0,5.168e-05]
[1760141169658,0.71337677,113030.0,113020.0,5.168e-05]
[1760141169971,0.63362856,113030.0,113020.0,1.168e-05]
[1760141170174,0.63518633,113030.0,113020.0,1.168e-05]
[1760141170332,0.75851759,113030.0,113020.0,1.168e-05]
[1760141170532,0.73362855,113030.0,113020.0,1.168e-05]
[1760141170987,0.73518632,113030.0,113020.0,1.168e-05]
[1760141171192,0.73462855,113030.0,113020.0,1.168e-05]
[1760141171985,0.63462856,113030.0,113020.0,1.168e-05]
[1760141172188,0.73362855,113030.0,113020.0,1.168e-05]
[1760141172586,0.73562855,113030.0,113020.0,1.168e-05]
[1760141172791,0.63562856,113030.0,113020.0,1.168e-05]
[1760141173014,0.62768749,113030.0,113020.0,1.168e-05]
[1760141173357,0.40379656,113030.0,113020.0,1.168e-05]
[1760141173529,0.36638124,113030.0,113020.0,1.168e-05]
[1760141173674,0.102,113030.0,113020.0,1.168e-05]
[1760141173874,0.102,113030.0,113020.0,0.11707059]
[1760141174097,0.102,113030.0,113020.0,0.02501167]
[1760141174098,0.1,113030.0,113020.0,0.02501167]
[1760141174297,0.1,113030.0,113020.0,0.0920706]
[1760141174827,0.1,113030.0,113020.0,1.168e-05]
[1760141175028,0.61694417,113030.0,113020.0,1.168e-05]
[1760141175228,0.61894417,113030.0,113020.0,1.168e-05]
[1760141175784,0.61694417,113030.0,113020.0,1.168e-05]
[1760141175980,0.69563792,113030.0,113020.0,1.168e-05]
[1760141176510,0.41384168,113030.0,113020.0,1.168e-05]
[1760141177124,0.81384168,113030.0,113020.0,1.168e-05]
[1760141177281,0.52429869,113030.0,113020.0,1.168e-05]
[1760141177488,0.42178275,113030.0,113020.0,1.168e-05]
[1760141177688,0.41384168,113030.0,113020.0,1.168e-05]
[1760141178004,0.07384168,113030.0,113020.0,1.168e-05]
[1760141178205,0.1769295,113040.0,113020.0,1.168e-05]
[1760141178405,0.18575939,113050.0,113020.0,1.168e-05]
[1760141178607,0.17694417,113030.0,113020.0,1.168e-05]
[1760141178806,0.51694417,113030.0,113020.0,1.168e-05]
[1760141179006,0.92488524,113030.0,113020.0,1.168e-05]
[1760141179552,0.61946011,113030.0,113020.0,1.168e-05]
[1760141179755,0.94870743,113030.0,113020.0,1.168e-05]
[1760141179937,1.02740118,113030.0,113020.0,1.168e-05]
[1760141180137,1.02840118,113030.0,113020.0,1.168e-05]
[1760141181230,1.02046011,113030.0,113020.0,1.168e-05]
[1760141182291,0.94176636,113030.0,113020.0,1.168e-05]
[1760141182604,0.92588524,113030.0,113020.0,1.168e-05]
[1760141183165,0.52488524,113030.0,113020.0,1.168e-05]
[1760141183361,0.17694417,113030.0,113020.0,1.168e-05]
[1760141184005,0.51694417,113030.0,113020.0,1.168e-05]
[1760141184575,0.51616054,113030.0,113020.0,1.168e-05]
[1760141184950,0.51716054,113030.0,113020.0,1.168e-05]
[1760141185152,0.92510161,113030.0,113020.0,1.168e-05]
[1760141185394,0.92410161,113030.0,113020.0,1.168e-05]
[1760141185811,0.91716054,113030.0,113020.0,1.168e-05]
[1760141186011,0.92510161,113030.0,113020.0,1.168e-05]
[1760141186344,0.34,112990.0,112970.0,0.09205892]
[1760141186563,0.51200692,112990.0,112970.0,0.09256525]
[1760141186765,0.335,112990.0,112970.0,0.11756524]
[1760141186920,0.335,112990.0,112980.0,0.02499999]
[1760141187126,0.335,112990.0,112970.0,0.11756524]
[1760141187311,0.51200713,112990.0,112970.0,0.09256525]
[1760141187507,0.51200713,112990.0,112970.0,0.00050633]
[1760141187508,0.17702248,112980.0,112970.0,0.00050633]
[1760141187711,0.51200713,112990.0,112970.0,0.00050633]
[1760141187920,0.17702248,112980.0,112970.0,0.00050633]
[1760141188697,0.51702248,112980.0,112970.0,0.00050633]
[1760141189109,0.91702248,112980.0,112970.0,1e-08]
[1760141189311,1.02801714,112980.0,112970.0,1e-08]
[1760141190722,0.51702248,112980.0,112970.0,1e-08]
[1760141190955,0.34,112940.0,112910.0,0.11705891]
[1760141191121,0.34050598,112940.0,112910.0,0.11705891]
[1760141191326,0.34050598,112940.0,112920.0,0.09205892]
[1760141191733,0.34050598,112940.0,112920.0,0.11705891]
[1760141191938,0.51759274,112940.0,112920.0,0.02499999]
[1760141192140,0.52644699,112940.0,112910.0,0.02499999]
[1760141192349,0.34936023,112940.0,112920.0,0.02499999]
[1760141192570,0.34050598,112940.0,112920.0,0.02499999]
[1760141193106,0.00050598,112940.0,112930.0,0.11705891]
[1760141193224,0.00050598,112940.0,112900.0,0.0004]
[1760141193426,0.00050598,112940.0,112930.0,0.02499999]
[1760141193637,0.00050598,112940.0,112920.0,0.02499999]
[1760141193853,0.34,112920.0,112900.0,0.02539999]
[1760141194357,0.34,112920.0,112910.0,0.11705891]
[1760141194672,0.00050598,112940.0,112920.0,0.02499999]
[1760141194871,0.1788869,112950.0,112920.0,0.02499999]
[1760141195216,0.36481015,112950.0,112920.0,0.02550597]
[1760141195780,0.17708216,112990.0,112930.0,0.09205892]
[1760141195982,0.18589605,113000.0,112950.0,0.02499999]
[1760141196248,0.18585857,112990.0,112950.0,0.11705891]
[1760141196455,0.18588198,113010.0,112950.0,0.11705891]
[1760141196657,0.00885034,112990.0,112960.0,0.02499999]
[1760141196864,0.1858587,112990.0,112960.0,0.02499999]
[1760141197094,0.18584164,113000.0,112970.0,0.09205892]
[1760141197280,0.1,113000.0,112970.0,0.11705891]
[1760141197733,0.1,113000.0,112990.0,0.11705891]
[1760141197963,0.1,113000.0,112990.0,0.02499999]
[1760141198143,0.2858407,113000.0,112970.0,0.09221119]
[1760141198363,0.34,112990.0,112980.0,0.02499999]
[1760141198942,0.5170069,112990.0,112970.0,0.09221119]
[1760141199154,0.51700763,112990.0,112970.0,0.09221119]
[1760141199477,0.34,112990.0,112970.0,0.11721118]
[1760141199686,0.51700709,112990.0,112970.0,0.09221119]
[1760141199832,0.51700709,112990.0,112970.0,0.00015227]
[1760141199833,0.51702248,112980.0,112970.0,0.00015227]
[1760141201748,0.34,112980.0,112970.0,0.00015227]
[1760141201951,0.001,112980.0,112970.0,0.00015227]
[1760141202360,0.51702248,112980.0,112970.0,0.00015227]
[1760141202561,0.29420483,112980.0,112970.0,0.00015227]
[1760141202736,0.47122731,112980.0,112970.0,1e-08]
[1760141202934,0.47916838,112980.0,112970.0,1e-08]
[1760141203580,0.50352822,112980.0,112970.0,1e-08]
[1760141203784,0.47916838,112980.0,112970.0,1e-08]
[1760141204291,0.50352822,112980.0,112970.0,1e-08]
[1760141204728,0.47122731,112980.0,112970.0,1e-08]
[1760141205157,0.17802248,112980.0,112970.0,1e-08]
[1760141205544,0.001,112980.0,112970.0,1e-08]
[1760141205695,0.28586923,113000.0,112970.0,1e-08]
[1760141205902,0.1,113000.0,112970.0,1e-08]
[1760141206099,0.28584344,113000.0,112970.0,0.025]
[1760141206541,0.34,112990.0,112970.0,0.025]
[1760141206742,0.1,113000.0,112970.0,0.025]
[1760141206946,0.17700692,112990.0,112970.0,0.09205893]
[1760141207206,0.34,112990.0,112970.0,0.11705892]
[1760141207478,0.1,113000.0,112980.0,0.11705891]
[1760141207612,0.1,113000.0,112990.0,0.02499999]
[1760141207815,0.101,113000.0,112990.0,0.09205892]
[1760141208033,0.28684169,113000.0,112970.0,0.09205893]
[1760141208250,0.17700891,112990.0,112970.0,0.11705892]
[1760141208451,0.28584169,113000.0,112970.0,0.025]
[1760141208808,0.17702248,112980.0,112970.0,0.09305893]
[1760141209017,0.51702248,112980.0,112970.0,1e-08]
[1760141210812,0.34,112980.0,112970.0,1e-08]
[1760141211017,0.51702248,112980.0,112970.0,1e-08]
[1760141212747,0.59571623,112980.0,112970.0,1e-08]
[1760141213357,0.34,112960.0,112940.0,0.11705891]
[1760141213565,0.34,112960.0,112950.0,0.09205892]
[1760141213762,0.51705405,112960.0,112940.0,0.0921142]
[1760141213968,0.34,112960.0,112940.0,0.02505527]
[1760141214121,0.51705731,112960.0,112940.0,5.528e-05]
[1760141214317,0.17706949,112950.0,112940.0,5.528e-05]
[1760141214758,0.51705731,112960.0,112940.0,5.528e-05]
[1760141215640,0.51705509,112960.0,112940.0,5.528e-05]
[1760141216230,0.07884873,112970.0,112940.0,0.11711419]
[1760141216463,0.07884873,112980.0,112950.0,0.11705891]
[1760141216665,0.07884873,112980.0,112960.0,0.11705891]
[1760141216866,0.26470629,112990.0,112960.0,0.01705891]
[1760141217066,0.18585756,112990.0,112950.0,0.01705891]
[1760141217251,0.18585756,112990.0,112960.0,0.01705891]
[1760141217443,0.00885112,112980.0,112950.0,0.01705891]
[1760141217666,0.17703815,112970.0,112940.0,0.01711419]
[1760141217892,0.34,112960.0,112940.0,0.01711419]
[1760141218406,0.51705672,112960.0,112940.0,0.01711419]
[1760141218608,0.34,112960.0,112940.0,0.01711419]
[1760141219238,0.34,112980.0,112940.0,0.01711419]
[1760141219566,0.26469022,113000.0,112940.0,0.01711419]
[1760141219785,0.07884873,113010.0,112960.0,0.01705891]
[1760141219995,0.18582511,113010.0,112960.0,0.01705891]
[1760141220250,0.18584109,113000.0,112960.0,0.01705891]
[1760141220453,0.07884873,113020.0,112970.0,0.01705891]
[1760141220656,0.2646407,113030.0,112990.0,0.01705891]
[1760141220852,0.07884873,113030.0,112990.0,0.01705891]
[1760141221068,0.18581165,113020.0,112990.0,0.01705891]
[1760141221232,0.07884873,113030.0,113000.0,0.01705891]
[1760141221451,0.07884873,113040.0,113000.0,0.01705891]
[1760141221765,0.07884873,113050.0,113010.0,0.01705891]
[1760141222082,0.2557655,113050.0,113010.0,0.01705891]
[1760141222307,0.07884873,113050.0,113030.0,0.01705891]
[1760141222502,0.26459098,113060.0,113030.0,0.01705891]
[1760141222744,0.17692999,113040.0,113020.0,0.01705891]
[1760141222919,0.17694417,113030.0,113010.0,0.01705891]
[1760141223092,0.51695983,113020.0,113000.0,5.528e-05]
[1760141223299,0.51697548,113010.0,113000.0,5.528e-05]
[1760141223499,0.34,113010.0,113000.0,5.528e-05]
[1760141223911,0.51697548,113010.0,113000.0,5.528e-05]
[1760141224133,0.34,113010.0,113000.0,5.528e-05]
[1760141224559,0.51697548,113010.0,113000.0,5.528e-05]
[1760141226522,0.51797548,113010.0,113000.0,5.528e-05]
[1760141226817,0.07884873,113010.0,113000.0,5.528e-05]
[1760141227154,0.34,113010.0,113000.0,5.528e-05]
[1760141227372,0.51797548,113010.0,113000.0,5.528e-05]
[1760141227566,0.341,113010.0,113000.0,5.528e-05]
[1760141227811,0.34,113010.0,113000.0,5.528e-05]
[1760141228002,0.51697548,113010.0,113000.0,5.528e-05]
[1760141228308,0.67876529,113010.0,113000.0,1.528e-05]
[1760141228459,0.51697548,113010.0,113000.0,1.528e-05]
[1760141228660,0.71008456,113010.0,113000.0,1.528e-05]
[1760141228856,0.62714348,113010.0,113000.0,1.528e-05]
[1760141229114,0.59568902,113010.0,113000.0,1.528e-05]
[1760141229349,0.51702248,112980.0,112970.0,0.005]
[1760141229553,0.34015181,112980.0,112970.0,0.005]
[1760141231179,0.00015181,112980.0,112970.0,0.44955946]
[1760141231390,0.00015181,112980.0,112970.0,0.09250055]
[1760141231598,0.00015181,112980.0,112970.0,0.02205891]
[1760141232252,0.34015181,112980.0,112970.0,0.005]
[1760141232450,0.34015181,112980.0,112970.0,0.02205891]
[1760141232662,0.34015181,112980.0,112970.0,0.005]
[1760141233037,0.34015181,112980.0,112970.0,0.02205891]
[1760141233241,0.00015181,112980.0,112970.0,0.02205891]
[1760141233674,0.05015181,112980.0,112970.0,0.02205891]
[1760141233887,0.39015181,112980.0,112970.0,0.02205891]
[1760141234043,0.17700879,112990.0,112970.0,0.005]
[1760141234244,0.18584297,113000.0,112970.0,0.005]
[1760141234422,0.17701168,112990.0,112970.0,0.02205891]
[1760141234628,0.17702248,112980.0,112970.0,0.005]
[1760141235220,0.17702248,112980.0,112910.0,0.005]
[1760141235221,0.17710085,112930.0,112910.0,0.005]
[1760141235483,0.17711654,112920.0,112910.0,0.00550598]
[1760141235657,0.00885347,112950.0,112910.0,0.02256489]
[1760141235858,0.18592554,112950.0,112930.0,0.01705891]
[1760141236691,0.17710085,112930.0,112920.0,0.01705891]
[1760141236896,0.17710085,112930.0,112910.0,0.00550598]
[1760141237231,0.18593942,112940.0,112910.0,0.02256489]
[1760141237591,0.34,112950.0,112910.0,0.02256489]
[1760141237885,0.52590738,112960.0,112930.0,0.01705891]
[1760141238089,0.34885269,112960.0,112930.0,0.01705891]
[1760141238435,0.34,112960.0,112930.0,0.01705891]
[1760141238637,0.5170539,112960.0,112930.0,0.01705891]
[1760141239036,0.34,112960.0,112930.0,0.01705891]
[1760141239239,0.0088519,112970.0,112910.0,0.00550598]
[1760141239443,0.18589065,112970.0,112940.0,0.01705891]
[1760141239650,0.18590674,112960.0,112930.0,0.01705891]
[1760141239843,0.18592786,112950.0,112920.0,0.01705891]
[1760141240215,0.18592786,112950.0,112930.0,0.01705891]
[1760141240517,0.1858747,112980.0,112920.0,0.01705891]
[1760141240833,0.1858747,112980.0,112910.0,0.00550598]
[1760141240834,0.34,112970.0,112940.0,0.01705891]
[1760141241244,0.17705382,112960.0,112940.0,0.01705891]
[1760141241433,0.18590651,112960.0,112930.0,0.01705891]
[1760141241664,0.255747,113000.0,112940.0,0.01705891]
[1760141241872,0.18584089,113000.0,112970.0,0.01705891]
[1760141242293,0.17702248,112980.0,112960.0,0.01705891]
[1760141242728,0.1858736,112980.0,112960.0,0.01705891]
[1760141242927,0.17703815,112970.0,112950.0,0.01705891]
[1760141243178,0.17703815,112970.0,112960.0,0.00015181]
[1760141243770,0.5258736,112980.0,112960.0,0.01721072]
[1760141243983,0.5258736,112980.0,112960.0,0.00015181]
[1760141244192,0.34,112980.0,112960.0,0.00015181]
[1760141244398,0.18584089,113000.0,112960.0,0.01721072]
[1760141244598,0.34884955,113000.0,112960.0,0.01721072]
[1760141244805,0.18584169,113000.0,112970.0,0.01705891]
[1760141245022,0.18585736,112990.0,112960.0,0.01721072]
[1760141245218,0.18584091,113000.0,112970.0,0.01705891]
[1760141245422,0.18582497,113010.0,112990.0,0.01705891]
[1760141245629,0.17699197,113000.0,112980.0,0.01705891]
[1760141245805,0.18582454,113010.0,112970.0,0.01705891]
[1760141246008,0.07869609,113020.0,112970.0,0.01705891]
[1760141246216,0.17699115,113000.0,112990.0,0.01705891]
[1760141246429,0.1858407,113000.0,112970.0,0.01705891]
[1760141246614,0.5258407,113000.0,112970.0,0.01705891]
[1760141246807,0.5258407,113000.0,112970.0,0.01249156]
[1760141247042,0.17700826,112990.0,112970.0,0.01249156]
[1760141247243,0.5258407,113000.0,112970.0,0.01249156]
[1760141247567,0.17701467,112990.0,112970.0,0.01249156]
[1760141247758,0.18586501,112990.0,112960.0,0.01264337]
[1760141247919,0.17702357,112980.0,112960.0,0.01264337]
[1760141248133,0.18586501,112990.0,112960.0,0.00015181]
[1760141248331,0.1770244,112980.0,112960.0,0.01264337]
[1760141248528,0.34885034,112990.0,112960.0,0.00015181]
[1760141248847,0.34,112990.0,112970.0,0.01249156]
[1760141249013,0.51700681,112990.0,112960.0,0.01264337]
[1760141249217,0.34,112990.0,112960.0,0.01264337]
[1760141249413,0.34,112990.0,112970.0,0.01249156]
[1760141249658,0.34885034,112990.0,112970.0,0.01249156]
[1760141249864,0.34885034,112990.0,112960.0,0.01264337]
[1760141250037,0.34,112990.0,112970.0,0.01249156]
[1760141250431,0.26450415,113020.0,112970.0,0.01249156]
[1760141250672,0.07869609,113030.0,113000.0,0.01249156]
[1760141250875,0.00884642,113040.0,113010.0,0.01249156]
[1760141251115,0.26447259,113040.0,113010.0,0.01249156]
[1760141251317,0.08754251,113040.0,113010.0,0.01249156]
[1760141251544,0.2644722,113040.0,113010.0,0.01249156]
[1760141251905,0.18592769,113040.0,113010.0,0.01249156]
[1760141252065,0.00015158,113040.0,113010.0,0.00785596]
[1760141252936,0.34015158,113040.0,113010.0,0.00785596]
[1760141253486,0.00015158,113040.0,113010.0,0.00785596]
[1760141253689,0.00015158,113040.0,113030.0,0.00785596]
[1760141254100,0.00015158,113040.0,113000.0,0.34]
[1760141254293,0.00015158,113040.0,113030.0,0.00785596]
[1760141254923,0.005,113050.0,113030.0,0.00785596]
[1760141255185,0.005,113050.0,113040.0,0.00785596]
[1760141256381,0.34,113040.0,113010.0,0.00785596]
[1760141256680,0.52577941,113040.0,113010.0,0.00800754]
[1760141256880,0.34,113040.0,113010.0,0.00800754]
[1760141257088,0.52578054,113040.0,113010.0,0.00800754]
[1760141257263,0.34,113040.0,113010.0,0.00800754]
[1760141257463,0.005,113050.0,113010.0,0.00800754]
[1760141257715,0.34,113040.0,113010.0,0.00800754]
[1760141258279,0.005,113050.0,113040.0,0.00785596]
[1760141259209,0.002852,113050.0,113040.0,0.00785596]